bitfinex/quotes_SOLUSD_20250520
["timestamp","ask_amount","ask_price","bid_price","bid_amount"]
[1747731754226,70.6599448,167.84,167.77,43.88]
[1747731755141,20.85319351,167.84,167.78,18.64964886]
[1747731755929,33.34029225,167.84,167.78,18.64964886]
[1747731756442,20.85319351,167.84,167.78,18.64964886]
[1747731758427,20.85319351,167.84,167.81,26.0]
[1747731760237,48.21888176,167.92,167.82,44.64964886]
[1747731760443,63.10692368,167.92,167.83,17.86]
[1747731760633,12.48709874,167.9,167.84,18.64964886]
[1747731761125,50.61982494,167.92,167.84,18.64964886]
[1747731761326,12.48709874,167.91,167.84,18.64964886]
[1747731761934,50.61982494,167.92,167.85,26.0]
[1747731762143,50.61982494,167.92,167.86,18.64964886]
[1747731762350,29.77656626,167.92,167.86,18.64964886]
[1747731762530,29.76957349,167.96,167.86,18.64964886]
[1747731762725,12.48709874,167.95,167.86,18.64964886]
[1747731763054,12.48709874,167.94,167.86,18.64964886]
[1747731763941,0.28432314,167.95,167.86,18.64964886]
[1747731764252,42.25667223,167.96,167.9,18.64964886]
[1747731764450,50.60786831,167.96,167.91,17.86]
[1747731765267,20.83829482,167.96,167.92,18.64964886]
[1747731765753,5.95131821,168.03,167.96,18.64964886]
[1747731765931,5.95131821,168.03,167.98,18.64964886]
[1747731766131,5.95131821,168.03,167.97,17.86]
[1747731766341,40.7742537,168.02,167.9,3.0187325]
[1747731766648,19.94276168,168.0,167.94,26.0]
[1747731766852,19.94276168,168.0,167.95,17.86]
[1747731767026,0.14216157,167.98,167.95,17.86]
[1747731767222,50.58985411,168.02,167.97,26.0]
[1747731767531,50.58985411,168.02,167.95,17.86]
[1747731769432,20.22708482,168.01,167.95,17.86]
[1747731769728,0.28432314,168.01,167.95,17.86]
[1747731770246,0.28432314,168.01,167.93,44.64964886]
[1747731770247,19.94276168,167.97,167.93,17.86]
[1747731770552,0.28432314,167.94,167.89,17.86]
[1747731770848,19.94276168,167.91,167.89,17.86]
[1747731771360,0.28432314,167.94,167.89,17.86]
[1747731771653,20.83829482,167.96,167.89,17.86]
[1747731771654,0.28432314,167.92,167.89,17.86]
[1747731772252,20.22708482,167.92,167.89,17.86]
[1747731772552,5.95557143,167.91,167.89,17.86]
[1747731772923,25.89833311,167.91,167.89,17.86]
[1747731773129,5.95557143,167.91,167.89,17.86]
[1747731773546,5.95450756,167.94,167.89,17.86]
[1747731776932,6.23847616,167.95,167.89,17.86]
[1747731777134,5.95415302,167.95,167.9,18.64964886]
[1747731777929,20.83085345,168.02,167.93,26.0]
[1747731778559,20.83085345,168.02,167.95,26.0]
[1747731778731,20.83085345,168.02,167.96,17.86]
[1747731778933,5.95167241,168.02,167.96,17.86]
[1747731779145,5.95167241,168.02,167.99,26.0]
[1747731779351,14.87454626,168.08,168.0,26.0]
[1747731779750,34.81730794,168.08,168.0,26.0]
[1747731779943,19.94276168,168.07,168.0,26.0]
[1747731780289,19.94276168,168.06,167.99,18.64964886]
[1747731780834,26.0,168.07,167.99,18.64964886]
[1747731780835,20.82465638,168.07,167.99,18.64964886]
[1747731781042,66.76741806,168.07,167.99,18.64964886]
[1747731781345,46.82465638,168.07,167.99,18.64964886]
[1747731781846,26.0,168.04,167.98,19.16]
[1747731782159,0.28432314,168.03,167.98,19.16]
[1747731782341,20.22708482,168.03,167.98,19.16]
[1747731782740,45.94276168,168.06,167.99,18.64964886]
[1747731783045,20.82713477,168.05,167.98,19.16]
[1747731784240,20.82713477,168.05,167.99,18.64964886]
[1747731785162,5.94990182,168.07,167.99,44.64964886]
[1747731785535,20.82465638,168.07,167.99,44.64964886]
[1747731786338,20.22708482,168.06,167.99,44.64964886]
[1747731786960,40.76989645,168.05,167.99,26.0]
[1747731787143,19.94276168,168.02,167.97,17.84]
[1747731787964,19.94276168,168.01,167.97,17.84]
[1747731788353,19.94276168,168.02,167.97,17.84]
[1747731788653,0.28432314,168.02,167.97,17.84]
[1747731789242,20.82961375,168.03,167.97,17.84]
[1747731789765,40.77237543,168.03,167.97,17.84]
[1747731790263,20.82961375,168.03,167.97,17.84]
[1747731791260,40.77237543,168.03,167.97,17.84]
[1747731791668,20.82961375,168.03,167.97,17.84]
[1747731791967,40.77237543,168.03,167.97,17.84]
[1747731793344,20.82961375,168.03,167.97,17.84]
[1747731795067,40.77237543,168.03,167.97,17.84]
[1747731795674,20.82961375,168.03,167.97,17.84]
[1747731799876,20.82961375,168.03,167.98,18.64964886]
[1747731800375,5.95131821,168.03,167.98,44.64964886]
[1747731801372,5.95060993,168.05,167.98,44.64964886]
[1747731801862,20.82656933,168.06,167.98,50.60270669]
[1747731802387,5.95025586,168.06,167.98,50.60270669]
[1747731803364,5.94990182,168.07,167.98,50.60270669]
[1747731803561,20.82465638,168.07,167.98,50.60270669]
[1747731804081,40.76741806,168.07,167.98,50.60270669]
[1747731804277,0.28432314,168.06,167.98,44.64964886]
[1747731804477,19.94276168,168.05,167.98,44.64964886]
[1747731805560,20.82713477,168.05,167.98,44.64964886]
[1747731809082,12.4576304,168.03,167.99,17.84]
[1747731809572,0.28432314,168.04,167.99,17.84]
[1747731809891,12.4576304,168.03,167.99,17.84]
[1747731810293,12.74195354,168.04,167.99,17.84]
[1747731810592,20.82961375,168.03,167.99,17.84]
[1747731811089,5.95131821,168.03,167.99,17.84]
[1747731812493,5.95060993,168.05,167.99,17.84]
[1747731812871,5.95060993,168.05,168.0,18.64964886]
[1747731813573,20.82713477,168.05,168.0,18.64964886]
[1747731814786,5.95060993,168.05,168.01,26.0]
[1747731816279,20.82713477,168.05,168.01,26.0]
[1747731816478,14.87652484,168.05,168.01,26.0]
[1747731817194,27.33415524,168.05,167.97,17.84]
[1747731817386,27.33415524,168.05,167.97,43.84]
[1747731817767,12.4576304,168.04,167.97,43.84]
[1747731818276,12.4576304,168.03,167.97,43.84]
[1747731818484,20.83085345,168.02,167.97,17.84]
[1747731819495,20.83085345,168.02,167.97,43.84]
[1747731819795,33.28848385,168.02,167.97,43.84]
[1747731820589,20.83085345,168.02,167.97,43.84]
[1747731822483,33.28848385,168.02,167.97,43.84]
[1747731822804,33.28848385,168.02,167.94,19.44]
[1747731822805,12.4576304,168.0,167.94,19.44]
[1747731822983,12.4576304,167.99,167.94,19.44]
[1747731823881,12.4576304,167.96,167.89,28.01472291]
[1747731824183,12.4576304,167.95,167.9,17.84]
[1747731824381,0.28432314,167.94,167.89,28.01472291]
[1747731824789,20.8420175,167.93,167.89,28.01472291]
[1747731825177,20.8420175,167.93,167.9,3.36246103]
[1747731825787,0.28432314,167.92,167.9,3.36246103]
[1747731825985,12.4576304,167.91,167.88,17.84]
[1747731826189,12.4576304,167.91,167.85,17.84]
[1747731826894,20.8457415,167.9,167.85,17.84]
[1747731827692,20.8457415,167.9,167.86,26.0]
[1747731827898,33.3033719,167.9,167.86,26.0]
[1747731828092,20.8457415,167.9,167.86,26.0]
[1747731829497,14.88981536,167.9,167.86,26.0]
[1747731830920,27.34744576,167.9,167.86,26.0]
[1747731831402,14.88981536,167.9,167.86,26.0]
[1747731831791,20.8457415,167.9,167.86,26.0]
[1747731832609,33.3033719,167.9,167.86,26.0]
[1747731833096,0.28432314,167.89,167.84,43.84]
[1747731833281,12.4576304,167.88,167.84,26.0]
[1747731833486,12.4576304,167.88,167.83,17.86]
[1747731833891,5.95699052,167.87,167.83,17.86]
[1747731834191,5.95699052,167.87,167.83,43.86]
[1747731835298,20.84897931,167.88,167.83,17.86]
[1747731835489,5.95663569,167.88,167.83,17.86]
[1747731835986,5.95592614,167.9,167.84,18.64964886]
[1747731837399,14.8894421,167.91,167.84,44.64964886]
[1747731838199,27.3470725,167.91,167.84,44.64964886]
[1747731838400,14.8894421,167.91,167.84,44.64964886]
[1747731839328,20.84501353,167.91,167.84,44.64964886]
[1747731839902,33.30264393,167.91,167.84,44.64964886]
[1747731840361,20.84501353,167.91,167.84,44.64964886]
[1747731843033,14.88686133,167.94,167.88,18.64964886]
[1747731843327,5.95486214,167.93,167.89,17.86]
[1747731843525,5.95486214,167.93,167.9,18.64964886]
[1747731844435,33.29517402,167.97,167.9,18.64964886]
[1747731844611,20.83754362,167.97,167.9,18.64964886]
[1747731844812,33.29517402,167.97,167.9,18.64964886]
[1747731845840,12.74195354,167.96,167.89,17.86]
[1747731846208,12.4576304,167.92,167.88,17.86]
[1747731846504,20.84450002,167.91,167.85,45.4]
[1747731846717,12.74195354,167.9,167.85,17.86]
[1747731847034,12.4576304,167.89,167.85,17.86]
[1747731848006,12.74195354,167.9,167.85,17.86]
[1747731848519,20.84698313,167.89,167.85,17.86]
[1747731848714,33.30461353,167.89,167.85,17.86]
[1747731850722,33.30461353,167.89,167.83,17.86]
[1747731851926,0.28432314,167.88,167.83,17.86]
[1747731852125,12.4576304,167.85,167.77,19.4]
[1747731852321,12.4576304,167.84,167.77,38.04964886]
[1747731852527,0.28432314,167.85,167.77,38.04964886]
[1747731852528,12.4576304,167.82,167.77,37.26]
[1747731853054,12.4576304,167.8,167.76,17.86]
[1747731853613,12.4576304,167.81,167.76,17.86]
[1747731854230,5.95947556,167.8,167.75,17.86]
[1747731854623,20.85816447,167.8,167.75,17.86]
[1747731855048,12.74195354,167.79,167.73,17.86]
[1747731856743,20.86065084,167.78,167.73,17.86]
[1747731857215,20.86065084,167.78,167.72,45.4]
[1747731857414,20.86065084,167.78,167.72,63.26]
[1747731859238,20.86065084,167.78,167.73,17.86]
[1747731859822,33.31828124,167.78,167.73,17.86]
[1747731860026,33.31828124,167.78,167.72,45.4]
[1747731860027,12.74195354,167.77,167.72,37.26]
[1747731860430,0.28432314,167.77,167.72,37.26]
[1747731861235,5.96054121,167.77,167.72,37.26]
[1747731862826,20.86189425,167.77,167.72,37.26]
[1747731868155,14.90135304,167.77,167.72,37.26]
[1747731868334,18.41781635,167.78,167.72,37.26]
[1747731868533,33.31828124,167.78,167.72,37.26]
[1747731869258,5.96018595,167.78,167.73,18.64964886]
[1747731870130,14.89971536,167.79,167.73,18.64964886]
[1747731870936,5.95947556,167.8,167.73,18.64964886]
[1747731871440,5.95947556,167.8,167.73,24.61154897]
[1747731871752,5.95947556,167.8,167.74,26.0]
[1747731872670,5.95947556,167.8,167.76,26.0]
[1747731872954,5.95805529,167.84,167.77,18.64964886]
[1747731873257,5.95805529,167.84,167.8,26.0]
[1747731873447,5.95699052,167.87,167.81,18.64964886]
[1747731874352,5.95592614,167.9,167.81,24.60866389]
[1747731874559,20.8457415,167.9,167.81,24.60866389]
[1747731875646,33.3033719,167.9,167.81,18.64964886]
[1747731876145,12.4576304,167.88,167.81,18.64964886]
[1747731876452,0.28432314,167.87,167.82,26.0]
[1747731876752,20.84822492,167.88,167.82,26.0]
[1747731876951,33.30585532,167.88,167.82,26.0]
[1747731877958,33.30585532,167.88,167.79,18.64964886]
[1747731878258,33.30585532,167.88,167.81,18.64964886]
[1747731881256,0.28432314,167.87,167.8,43.86]
[1747731881453,12.74195354,167.87,167.8,43.86]
[1747731881759,12.4576304,167.86,167.8,43.86]
[1747731882260,20.84822492,167.88,167.81,18.64964886]
[1747731883157,33.30585532,167.88,167.81,18.64964886]
[1747731884563,12.4576304,167.87,167.81,18.64964886]
[1747731885958,12.74195354,167.86,167.8,43.86]
[1747731886353,12.74195354,167.86,167.8,26.0]
[1747731886551,12.74195354,167.86,167.8,43.86]
[1747731886750,20.85195113,167.85,167.8,43.86]
[1747731890541,20.85195113,167.85,167.8,26.0]
[1747731890741,20.85195113,167.85,167.8,43.86]
[1747731891950,0.28432314,167.84,167.78,19.34]
[1747731892154,12.74195354,167.82,167.78,19.34]
[1747731892358,12.74195354,167.82,167.73,19.28]
[1747731892669,12.4576304,167.81,167.74,36.50964886]
[1747731892967,12.4576304,167.81,167.74,62.50964886]
[1747731893861,20.85816447,167.8,167.74,62.50964886]
[1747731894065,20.85816447,167.8,167.74,36.50964886]
[1747731894265,20.85816447,167.8,167.74,62.50964886]
[1747731896469,14.89868891,167.8,167.74,62.50964886]
[1747731898570,20.85816447,167.8,167.74,62.50964886]
[1747731898956,5.95947556,167.8,167.74,62.50964886]
[1747731899667,5.95947556,167.8,167.74,68.47118087]
[1747731900871,20.85524812,167.83,167.74,68.47118087]
[1747731901252,20.85524812,167.83,167.74,62.50964886]
[1747731901453,12.74195354,167.82,167.74,62.50964886]
[1747731901845,12.4576304,167.8,167.75,17.86]
[1747731902478,12.4576304,167.81,167.75,17.86]
[1747731903767,20.85816447,167.8,167.75,17.86]
[1747731905278,0.28432314,167.79,167.74,26.0]
[1747731905469,12.74195354,167.79,167.74,17.86]
[1747731905981,33.31828124,167.78,167.74,17.86]
[1747731907974,12.74195354,167.77,167.7,26.0]
[1747731908164,12.74195354,167.77,167.71,17.86]
[1747731908359,0.28432314,167.77,167.71,17.86]
[1747731908682,12.74195354,167.77,167.72,17.86]
[1747731909068,20.8631378,167.76,167.7,26.0]
[1747731909383,20.8631378,167.76,167.71,17.86]
[1747731911093,14.9004141,167.79,167.74,26.0]
[1747731911275,14.9004141,167.79,167.75,26.0]
[1747731913092,5.95912043,167.81,167.75,26.0]
[1747731914098,20.85692151,167.81,167.74,18.64964886]
[1747731914270,12.74195354,167.8,167.71,17.86]
[1747731914470,0.28432314,167.78,167.71,36.50964886]
[1747731914794,12.74195354,167.78,167.72,21.22489286]
[1747731914980,20.86189425,167.77,167.72,21.22489286]
[1747731916198,12.4576304,167.79,167.76,26.0]
[1747731916199,5.95983074,167.79,167.76,26.0]
[1747731917184,14.89928857,167.8,167.76,26.0]
[1747731919192,33.31289584,167.83,167.76,26.0]
[1747731920191,12.4576304,167.81,167.76,26.0]
[1747731921176,33.31579487,167.8,167.76,26.0]
[1747731922096,33.31579487,167.8,167.71,18.64964886]
[1747731922266,0.28432314,167.79,167.71,18.64964886]
[1747731922471,0.28432314,167.79,167.68,85.82685288]
[1747731922472,12.4576304,167.77,167.72,17.86]
[1747731922684,12.4576304,167.75,167.69,18.64964886]
[1747731922917,12.4576304,167.75,167.71,17.86]
[1747731923394,20.86562536,167.74,167.71,17.86]
[1747731923887,20.86562536,167.74,167.7,17.86]
[1747731924791,14.90401812,167.74,167.7,17.86]
[1747731926489,27.36164852,167.74,167.7,17.86]
[1747731926792,20.86562536,167.74,167.69,26.0]
[1747731926994,20.86562536,167.74,167.7,17.86]
[1747731930796,14.90401812,167.74,167.7,17.86]
[1747731943691,20.86562536,167.74,167.7,17.86]
[1747731945608,14.90401812,167.74,167.7,17.86]
[1747731946911,14.90401812,167.74,167.71,3.36980091]
[1747731947412,20.86562536,167.74,167.71,3.36980091]
[1747731948002,20.86562536,167.74,167.7,17.86]
[1747731948593,12.74195354,167.76,167.73,26.0]
[1747731948594,5.96089651,167.76,167.73,26.0]
[1747731948891,5.95983074,167.79,167.74,26.0]
[1747731949094,5.95983074,167.79,167.75,17.88]
[1747731949587,14.89927947,167.8,167.75,17.88]
[1747731950511,14.89927947,167.8,167.76,3.36683797]
[1747731950817,5.95912043,167.81,167.76,3.36683797]
[1747731951109,5.95912043,167.81,167.77,44.64964886]
[1747731952940,14.89661582,167.83,167.77,44.64964886]
[1747731953814,12.74195354,167.82,167.75,17.88]
[1747731955216,5.95912043,167.81,167.75,17.88]
[1747731955519,26.0,167.86,167.75,17.88]
[1747731955520,20.85149027,167.86,167.79,26.0]
[1747731955689,20.85149027,167.86,167.8,17.86]
[1747731955890,33.30912067,167.86,167.8,17.86]
[1747731956090,20.85149027,167.86,167.8,17.86]
[1747731957709,33.30912067,167.86,167.8,17.86]
[1747731958612,5.9573454,167.86,167.81,18.64964886]
[1747731959226,21.13254806,167.88,167.81,18.64964886]
[1747731960319,21.13254806,167.88,167.8,17.86]
[1747731960320,12.4576304,167.85,167.8,17.86]
[1747731960517,12.74195354,167.87,167.8,17.86]
[1747731960723,0.28432314,167.87,167.8,17.86]
[1747731961024,20.84822492,167.88,167.81,18.64964886]
[1747731962621,5.95592614,167.9,167.85,18.64964886]
[1747731962929,5.95486214,167.93,167.88,18.64964886]
[1747731963220,20.8420175,167.93,167.89,17.86]
[1747731964235,14.8851654,167.96,167.89,17.86]
[1747731964725,27.3427958,167.96,167.89,17.86]
[1747731964933,12.74195354,167.95,167.89,17.86]
[1747731965234,27.3427958,167.96,167.89,17.86]
[1747731965405,14.8851654,167.96,167.89,17.86]
[1747731965924,27.3427958,167.96,167.89,17.86]
[1747731966306,33.29659432,167.96,167.89,17.86]
[1747731967728,12.4576304,167.93,167.89,17.86]
[1747731968329,0.28432314,167.93,167.89,17.86]
[1747731969426,20.84325868,167.92,167.89,17.86]
[1747731971330,50.61934252,167.92,167.88,17.86]
[1747731972036,20.84325868,167.92,167.88,17.86]
[1747731972608,5.95521676,167.92,167.88,17.86]
[1747731972807,5.95521676,167.92,167.89,18.64964886]
[1747731973833,5.95415302,167.95,167.89,18.64964886]
[1747731974734,5.95344406,167.97,167.89,24.60581438]
[1747731975814,14.88350991,167.98,167.89,24.60581438]
[1747731977540,14.88350991,167.98,167.89,18.64964886]
[1747731977837,14.88350991,167.98,167.89,24.60588767]
[1747731978734,14.88350991,167.98,167.89,18.64964886]
[1747731979046,27.34114031,167.98,167.89,18.64964886]
[1747731979336,38.4576304,167.95,167.9,17.86]
[1747731979538,20.84077646,167.94,167.9,17.86]
[1747731982222,5.95450756,167.94,167.91,18.64964886]
[1747731982820,5.95450756,167.94,167.9,17.86]
[1747731983032,20.84077646,167.94,167.9,17.86]
[1747731983937,14.8862689,167.94,167.9,17.86]
[1747731984635,5.95379852,167.96,167.91,18.64964886]
[1747731985012,20.83829482,167.96,167.91,18.64964886]
[1747731985741,14.8844963,167.96,167.91,18.64964886]
[1747731985946,14.8844963,167.96,167.9,17.86]
[1747731986123,27.3421267,167.96,167.9,17.86]
[1747731987824,33.29592522,167.96,167.9,17.86]
[1747731988420,20.83829482,167.96,167.9,17.86]
[1747731988617,5.95379852,167.96,167.91,18.64964886]
[1747731990031,14.88250491,167.99,167.91,18.64964886]
[1747731991053,12.74195354,167.98,167.88,18.64964886]
[1747731991346,12.4576304,167.96,167.92,17.86]
[1747731992650,5.95415302,167.95,167.92,17.86]
[1747731993945,5.95415302,167.95,167.88,24.60624643]
[1747731994136,5.95415302,167.95,167.89,21.20014895]
[1747731994533,5.95344406,167.97,167.89,27.15629045]
[1747731994850,5.95273528,167.99,167.9,18.64964886]
[1747731995529,5.95273528,167.99,167.92,18.64964886]
[1747731995731,33.29096373,168.0,167.92,18.64964886]
[1747731996054,12.4576304,167.99,167.92,18.64964886]
[1747731996239,12.4576304,167.99,167.91,18.64964886]
[1747731996754,33.29096373,168.0,167.91,18.64964886]
[1747731996953,20.83333333,168.0,167.91,18.64964886]
[1747731997326,33.29096373,168.0,167.91,18.64964886]
[1747731998430,12.74195354,167.99,167.9,18.64964886]
[1747731998631,12.4576304,167.97,167.9,18.64964886]
[1747731999353,12.4576304,167.98,167.9,18.64964886]
[1747731999549,5.95344406,167.97,167.9,18.64964886]
[1747731999742,5.95344406,167.97,167.92,26.0]
[1747731999945,20.83705422,167.97,167.92,26.0]
[1747732001043,5.95344406,167.97,167.92,26.0]
[1747732001242,5.95344406,167.97,167.93,18.64964886]
[1747732001632,5.95273528,167.99,167.93,18.64964886]
[1747732002857,20.83404083,168.0,167.93,18.64964886]
[1747732008464,20.83404083,168.0,167.94,3.35938052]
[1747732008634,20.83404083,168.0,167.95,17.84]
[1747732014351,14.88165988,168.0,167.95,17.84]
[1747732014749,5.95167241,168.02,167.96,18.64964886]
[1747732015045,5.95167241,168.02,167.99,26.0]
[1747732015268,5.95167241,168.02,168.0,26.0]
[1747732015970,20.83085345,168.02,167.98,17.84]
[1747732016359,33.28848385,168.02,167.98,17.84]
[1747732016753,20.83085345,168.02,167.98,17.84]
[1747732018068,33.28848385,168.02,167.98,17.84]
[1747732018379,5.95238095,168.0,167.98,17.84]
[1747732025087,20.83333333,168.0,167.96,17.84]
[1747732026199,33.29096373,168.0,167.96,17.84]
[1747732026398,33.29096373,168.0,167.86,136.42]
[1747732026399,12.4576304,167.98,167.86,136.42]
[1747732026581,12.4576304,167.97,167.89,37.78964886]
[1747732026898,12.4576304,167.96,167.89,37.78964886]
[1747732027100,12.4576304,167.96,167.9,17.84]
[1747732027287,5.95415302,167.95,167.91,26.0]
[1747732028296,12.4576304,168.01,167.94,44.64964886]
[1747732028602,12.4576304,168.02,167.94,44.64964886]
[1747732028902,0.14216157,168.01,167.94,44.64964886]
[1747732029202,0.28432314,168.01,167.94,44.64964886]
[1747732029406,5.95238095,168.0,167.94,44.64964886]
[1747732030095,5.95238095,168.0,167.96,44.64964886]
[1747732030301,5.95238095,168.0,167.97,17.84]
[1747732030880,15.16243921,168.04,167.97,17.84]
[1747732030881,0.28432314,168.03,167.97,17.84]
[1747732031202,21.11393689,168.03,167.97,17.84]
[1747732031702,33.57156729,168.03,167.98,3.36603154]
[1747732032001,12.74195354,168.01,167.98,3.36603154]
[1747732032895,12.4576304,167.99,167.9,8.55472291]
[1747732033099,12.4576304,167.97,167.91,17.84]
[1747732033296,12.4576304,167.97,167.91,43.84]
[1747732033692,5.95379852,167.96,167.91,43.84]
[1747732033894,20.83829482,167.96,167.91,43.84]
[1747732034203,20.83829482,167.96,167.92,3.36936408]
[1747732035306,20.83829482,167.96,167.93,3.36936408]
[1747732037197,20.83829482,167.96,167.91,43.84]
[1747732038104,20.83829482,167.96,167.92,3.36905531]
[1747732039502,20.83829482,167.96,167.93,3.36905531]
[1747732040890,20.83829482,167.96,167.92,3.36905531]
[1747732041208,5.95379852,167.96,167.92,3.36905531]
[1747732041612,5.95344406,167.97,167.92,3.36905531]
[1747732041786,5.95344406,167.97,167.93,3.36905531]
[1747732042222,5.95202666,168.01,167.94,18.64964886]
[1747732042589,5.95202666,168.01,167.94,37.78964886]
[1747732043215,5.95202666,168.01,167.96,18.64964886]
[1747732043428,5.95202666,168.01,167.97,17.84]
[1747732043800,46.83155657,168.02,167.97,17.84]
[1747732044108,12.4576304,168.0,167.97,17.84]
[1747732044526,46.83155657,168.02,167.97,17.84]
[1747732044527,12.74195354,167.98,167.97,17.84]
[1747732045827,18.69504319,167.98,167.97,17.84]
[1747732046614,5.95308965,167.98,167.97,17.84]
[1747732047918,14.88102094,168.0,167.97,17.84]
[1747732048994,20.83340189,168.0,167.97,17.84]
[1747732049216,33.29103229,168.0,167.97,17.84]
[1747732050121,12.4576304,167.99,167.97,17.84]
[1747732051107,33.29103229,168.0,167.97,17.84]
[1747732051401,20.83340189,168.0,167.97,17.84]
[1747732051600,33.29103229,168.0,167.97,17.84]
[1747732052016,20.83340189,168.0,167.97,17.84]
[1747732052209,33.29103229,168.0,167.9,24.6054899]
[1747732052416,33.29103229,168.0,167.89,45.14]
[1747732052417,12.4576304,167.97,167.89,101.94]
[1747732052728,12.4576304,167.95,167.9,17.84]
[1747732052907,12.4576304,167.95,167.91,3.37044395]
[1747732053229,33.29840686,167.94,167.91,3.37044395]
[1747732054802,33.29840686,167.94,167.9,17.84]
[1747732057929,5.95450756,167.94,167.9,17.84]
[1747732059628,5.95415302,167.95,167.91,3.36709191]
[1747732060622,5.95415302,167.95,167.9,17.84]
[1747732060831,5.95344406,167.97,167.91,18.64964886]
[1747732061946,5.95308965,167.98,167.91,24.60519816]
[1747732062637,5.95308965,167.98,167.93,18.64964886]
[1747732063252,5.95273528,167.99,167.93,18.64964886]
[1747732063811,5.95273528,167.99,167.93,43.7443999]
[1747732064318,5.95273528,167.99,167.95,18.64964886]
[1747732064518,5.95273528,167.99,167.96,17.84]
[1747732064930,5.95202666,168.01,167.96,17.84]
[1747732065345,33.28972372,168.01,167.96,17.84]
[1747732066742,20.83209332,168.01,167.96,17.84]
[1747732067914,33.28972372,168.01,167.96,17.84]
[1747732068544,20.83209332,168.01,167.96,17.84]
[1747732070144,33.28972372,168.01,167.96,17.84]
[1747732070945,12.74195354,168.0,167.96,17.84]
[1747732071615,12.74195354,168.0,167.93,19.14]
[1747732071616,12.4576304,167.98,167.93,19.14]
[1747732071821,20.83209332,168.01,167.95,17.84]
[1747732071822,12.4576304,167.97,167.95,17.84]
[1747732072848,5.95379852,167.96,167.95,17.84]
[1747732074145,33.58024836,167.96,167.89,18.64964886]
[1747732074318,33.58024836,167.96,167.92,17.84]
[1747732075260,12.4576304,167.94,167.91,17.84]
[1747732076063,12.74195354,167.95,167.91,17.84]
[1747732077555,5.95450756,167.94,167.91,17.84]
[1747732078437,20.84077646,167.94,167.91,17.84]
[1747732082653,33.29840686,167.94,167.91,17.84]
[1747732083760,33.29840686,167.94,167.9,17.86]
[1747732083935,33.29840686,167.94,167.88,19.14]
[1747732083936,12.4576304,167.92,167.88,19.14]
[1747732084136,12.74195354,167.93,167.89,17.86]
[1747732084450,33.29840686,167.94,167.89,17.86]
[1747732085858,12.74195354,167.93,167.88,19.14]
[1747732086063,12.74195354,167.93,167.89,17.86]
[1747732087466,20.84325868,167.92,167.89,17.86]
[1747732090471,0.28432314,167.91,167.84,1.6569]
[1747732090646,12.4576304,167.89,167.85,17.86]
[1747732091148,12.4576304,167.89,167.84,43.86]
[1747732091766,12.4576304,167.89,167.85,3.36743502]
[1747732092644,20.84822492,167.88,167.85,3.36743502]
[1747732093264,20.84822492,167.88,167.84,17.86]
[1747732094296,5.95663569,167.88,167.84,17.86]
[1747732094449,5.95663569,167.88,167.85,44.64964886]
[1747732094746,5.95521676,167.92,167.87,18.64964886]
[1747732096072,33.30088908,167.92,167.86,1.6152]
[1747732096975,12.4576304,167.91,167.86,1.6152]
[1747732097774,27.34567232,167.92,167.86,1.6152]
[1747732098980,12.4576304,167.91,167.86,1.6152]
[1747732099164,20.8457415,167.9,167.86,1.6152]
[1747732099784,33.3033719,167.9,167.85,26.0]
[1747732100380,12.59979197,167.89,167.83,19.1]
[1747732100562,12.4576304,167.88,167.83,45.1]
[1747732100763,12.4576304,167.87,167.84,17.86]
[1747732101480,5.9573454,167.86,167.84,17.86]
[1747732102375,20.85070891,167.86,167.82,1.5303]
[1747732102568,20.85070891,167.86,167.83,17.86]
[1747732103763,33.30833931,167.86,167.81,26.0]
[1747732103963,20.85070891,167.86,167.82,17.86]
[1747732104169,33.30833931,167.86,167.82,17.86]
[1747732104997,20.85070891,167.86,167.82,17.86]
[1747732107170,5.9573454,167.86,167.83,18.64964886]
[1747732107364,5.95663569,167.88,167.85,26.0]
[1747732108094,5.95663569,167.88,167.86,18.64964886]
[1747732108285,5.95557143,167.91,167.87,17.86]
[1747732109189,5.95521676,167.92,167.87,17.86]
[1747732109379,5.95521676,167.92,167.89,18.64964886]
[1747732109685,5.95521676,167.92,167.88,26.0]